fUST/lending_fUST_20241022
["ID","MTS","AMOUNT","RATE_DAILY","PERIOD"]
[340621353,1729545043800,-611.19,0.00016438,2]
[340621354,1729545043809,-500.0,0.00016438,2]
[340621355,1729545043818,-500.0,0.00016438,2]
[340621356,1729545043827,-500.0,0.00016438,2]
[340621357,1729545043837,-909.9,0.00016438,2]
[340621358,1729545043847,-548.75,0.00016438,2]
[340621359,1729545043856,-500.0,0.00016438,2]
[340621360,1729545043865,-500.0,0.00016438,2]
[340621361,1729545043874,-906.83,0.00016438,2]
[340621362,1729545043883,-937.76,0.00016438,2]
[340621363,1729545043892,-1310.41,0.00016438,2]
[340621364,1729545043902,-500.0,0.00016438,2]
[340621365,1729545043911,-500.0,0.00016438,2]
[340621366,1729545043921,-531.5,0.00016438,2]
[340621367,1729545043930,-1189.76,0.00016438,2]
[340621368,1729545043939,-639.01,0.00016438,2]
[340621369,1729545043948,-2011.75,0.00016438,2]
[340621370,1729545043957,-500.0,0.00016438,2]
[340621371,1729545044140,-500.0,0.00016438,2]
[340621372,1729545044150,-1340.15,0.00016438,2]
[340621373,1729545044159,-500.0,0.00016438,2]
[340621374,1729545044168,-500.0,0.00016438,2]
[340621375,1729545044177,-1235.59,0.00016438,2]
[340621376,1729545044186,-151.0,0.00016438,2]
[340621377,1729545044195,-151.0,0.00016438,2]
[340621378,1729545044204,-500.0,0.00016438,2]
[340621379,1729545044214,-169.571304,0.00016438,2]
[340621380,1729545044223,-839.49,0.00016438,2]
[340621381,1729545044233,-638.22904298,0.00016438,2]
[340621382,1729545044245,-500.0,0.00016438,2]
[340621383,1729545044255,-1271.38,0.00016438,2]
[340621384,1729545044267,-500.0,0.00016438,2]
[340621385,1729545044276,-500.0,0.00016438,2]
[340621386,1729545044285,-500.0,0.00016438,2]
[340621387,1729545044294,-1024.97,0.00016438,2]
[340621388,1729545044304,-901.94,0.00016438,2]
[340621389,1729545044314,-500.0,0.00016438,2]
[340621390,1729545044324,-1118.99,0.00016438,2]
[340621391,1729545044334,-500.0,0.00016438,2]
[340621392,1729545044344,-500.0,0.00016438,2]
[340621393,1729545044354,-899.82,0.00016438,2]
[340621394,1729545044363,-512.45,0.00016438,2]
[340621395,1729545044373,-936.25,0.00016438,2]
[340621396,1729545044383,-500.0,0.00016438,2]
[340621397,1729545044392,-894.41,0.00016438,2]
[340621398,1729545044401,-2173.03,0.00016438,2]
[340621399,1729545044411,-500.0,0.00016438,2]
[340621400,1729545044420,-481.39004029,0.00016438,2]
[340621401,1729545044429,-464.600923,0.00016438,2]
[340621402,1729545044438,-464.600923,0.00016438,2]
[340621403,1729545044447,-151.0,0.00016438,2]
[340621404,1729545044457,-500.0,0.00016438,2]
[340621405,1729545044466,-464.600923,0.00016438,2]
[340621406,1729545044476,-464.600923,0.00016438,2]
[340621407,1729545044486,-464.600923,0.00016438,2]
[340621408,1729545044495,-464.600923,0.00016438,2]
[340621409,1729545044505,-715.67,0.00016438,2]
[340621410,1729545044514,-500.0,0.00016438,2]
[340621411,1729545044523,-464.600923,0.00016438,2]
[340621412,1729545044533,-464.600923,0.00016438,2]
[340621413,1729545044542,-464.600923,0.00016438,2]
[340621414,1729545044551,-464.600923,0.00016438,2]
[340621415,1729545044560,-464.600923,0.00016438,2]
[340621416,1729545044570,-464.600931,0.00016438,2]
[340621417,1729545044579,-2325.7,0.00016438,2]
[340621418,1729545044588,-513.6,0.00016438,2]
[340621419,1729545044597,-500.0,0.00016438,2]
[340621420,1729545044607,-500.0,0.00016438,2]
[340621421,1729545044616,-1182.39,0.00016438,2]
[340621422,1729545044626,-500.0,0.00016438,2]
[340621423,1729545044635,-1172.58,0.00016438,2]
[340621424,1729545044644,-1323.26,0.00016438,2]
[340621425,1729545044653,-500.0,0.00016438,2]
[340621426,1729545044662,-533.03,0.00016438,2]
[340621427,1729545044671,-1306.87,0.00016438,2]
[340621428,1729545044680,-151.0,0.00016438,2]
[340621429,1729545044691,-151.0,0.00016438,2]
[340621430,1729545044700,-151.0,0.00016438,2]
[340621431,1729545044712,-151.0,0.00016438,2]
[340621432,1729545044722,-1051.76,0.00016438,2]
[340621433,1729545044731,-151.0,0.00016438,2]
[340621434,1729545044740,-500.0,0.00016438,2]
[340621435,1729545044750,-2948.56,0.00016438,2]
[340621436,1729545044760,-151.0,0.00016438,2]
[340621437,1729545044781,-576.83,0.00016438,2]
[340621438,1729545044790,-500.0,0.00016438,2]
[340621439,1729545044800,-1427.46,0.00016438,2]
[340621440,1729545044809,-500.0,0.00016438,2]
[340621441,1729545044818,-744.49,0.00016438,2]
[340621442,1729545044827,-807.28,0.00016438,2]
[340621443,1729545044836,-955.82,0.00016438,2]
[340621444,1729545044845,-1666.78,0.00016438,2]
[340621445,1729545044855,-1892.8,0.00016438,2]
[340621446,1729545044865,-767.24,0.00016438,2]
[340621447,1729545044874,-2175.05,0.00016438,2]
[340621448,1729545044883,-1583.14,0.00016438,2]
[340621449,1729545044892,-612.74,0.00016438,2]
[340621450,1729545044901,-1258.88,0.00016438,2]
[340621451,1729545044910,-516.65,0.00016438,2]
[340621452,1729545044920,-9734.74,0.00016438,2]
[340621453,1729545044929,-667.57,0.00016438,2]
[340621454,1729545044938,-500.0,0.00016438,2]
[340621455,1729545044947,-772.05,0.00016438,2]
[340621456,1729545044956,-500.0,0.00016438,2]
[340621457,1729545044965,-512.23216046,0.00016438,2]
[340621458,1729545044974,-910.36,0.00016438,2]
[340621459,1729545044983,-935.03,0.00016438,2]
[340621460,1729545044993,-1336.69,0.00016438,2]
[340621461,1729545045002,-1222.8,0.00016438,2]
[340621462,1729545045011,-151.0,0.00016438,2]
[340621463,1729545045021,-151.0,0.00016438,2]
[340621464,1729545045031,-151.0,0.00016438,2]
[340621465,1729545045040,-151.0,0.00016438,2]
[340621466,1729545045049,-151.0,0.00016438,2]
[340621467,1729545045058,-151.0,0.00016438,2]
[340621468,1729545045067,-151.0,0.00016438,2]
[340621469,1729545045076,-151.0,0.00016438,2]
[340621470,1729545045085,-193.797866,0.00016438,2]
[340621471,1729545045095,-1295.65,0.00016438,2]
[340621472,1729545045104,-500.0,0.00016438,2]
[340621473,1729545045113,-528.65,0.00016438,2]
[340621474,1729545045122,-500.0,0.00016438,2]
[340621475,1729545045132,-869.11,0.00016438,2]
[340621476,1729545045141,-1052.15,0.00016438,2]
[340621477,1729545045150,-500.0,0.00016438,2]
[340621478,1729545045159,-859.86,0.00016438,2]
[340621479,1729545045169,-825.86,0.00016438,2]
[340621480,1729545045178,-955.62,0.00016438,2]
[340621481,1729545045187,-151.0,0.00016438,2]
[340621482,1729545045196,-151.0,0.00016438,2]
[340621483,1729545045205,-3239.39,0.00016438,2]
[340621484,1729545045214,-151.0,0.00016438,2]
[340621485,1729545045223,-151.0,0.00016438,2]
[340621486,1729545045233,-1141.4,0.00016438,2]
[340621487,1729545045245,-5290.27,0.00016438,2]
[340621488,1729545045254,-703.32,0.00016438,2]
[340621489,1729545045266,-1000.0,0.00016438,2]
[340621490,1729545045275,-1124.1,0.00016438,2]
[340621491,1729545045284,-1670.91,0.00016438,2]
[340621492,1729545045293,-247.587672,0.00016438,2]
[340621493,1729545045303,-247.587672,0.00016438,2]
[340621494,1729545045312,-247.587672,0.00016438,2]
[340621495,1729545045321,-247.587672,0.00016438,2]
[340621496,1729545045331,-1969.18,0.00016438,2]
[340621497,1729545045342,-247.587672,0.00016438,2]
[340621498,1729545045351,-247.587672,0.00016438,2]
[340621499,1729545045360,-247.587672,0.00016438,2]
[340621500,1729545045370,-508.64,0.00016438,2]
[340621501,1729545045378,-247.58767802,0.00016438,2]
[340621502,1729545045388,-878.39,0.00016438,2]
[340621503,1729545045396,-1353.82,0.00016438,2]
[340621504,1729545045406,-11595.31,0.00016438,2]
[340621505,1729545045415,-500.0,0.00016438,2]
[340621506,1729545045424,-588.39,0.00016438,2]
[340621507,1729545045433,-500.0,0.00016438,2]
[340621508,1729545045442,-1689.08,0.00016438,2]
[340621509,1729545045451,-500.0,0.00016438,2]
[340621510,1729545045460,-593.862889,0.00016465,2]
[340621511,1729545045469,-454.509428,0.00016465,2]
[340621512,1729545045478,-594.536392,0.00016465,2]
[340621513,1729545045488,-482.64152886,0.00016473,2]
[340621514,1729545045498,-500.0,0.00016473,2]
[340621515,1729545045507,-587.8171746,0.00016473,2]
[340621516,1729545045517,-500.0,0.00016473,2]
[340621517,1729545045527,-500.0,0.00016473,2]
[340621518,1729545045536,-175.52078316,0.00016473,2]
[340621519,1729545045546,-500.0,0.00016473,2]
[340621520,1729545045555,-500.0,0.00016473,2]
[340621521,1729545045564,-631.33063644,0.00016473,2]
[340621522,1729545045573,-500.0,0.00016473,2]
[340621523,1729545045582,-500.0,0.00016473,2]
[340621524,1729545045592,-501.79517388,0.00016473,2]
[340621525,1729545045601,-500.0,0.00016473,2]
[340621526,1729545045610,-500.0,0.00016473,2]
[340621527,1729545045619,-500.0,0.00016473,2]
[340621528,1729545045628,-150.112234,0.000165,2]
[340621529,1729545045637,-4681.64232822,0.00016545,2]
[340621530,1729545045646,-183483.7899653,0.00016545,2]
[340621531,1729545045655,-150.906,0.00016546,2]
[340621532,1729545045665,-150.0,0.00016546,2]
[340621533,1729545045674,-368.89393,0.00016566,2]
[340621534,1729545045683,-737.787859,0.00016566,2]
[340621535,1729545045692,-162.264,0.00016572,2]
[340621536,1729545045701,-527.0,0.00016572,2]
[340621537,1729545045711,-1154.0,0.00016572,2]
[340621538,1729545045720,-1804.0,0.00016572,2]
[340621539,1729545045730,-150.112235,0.000166,2]
[340621540,1729545045739,-302.3308074,0.000166,2]
[340621541,1729545045750,-302.3308074,0.000166,2]
[340621542,1729545045760,-302.3308074,0.000166,2]
[340621543,1729545045768,-302.3308074,0.000166,2]
[340621544,1729545045778,-414.9392584,0.000166,2]
[340621545,1729545045787,-210.7185294,0.000166,2]
[340621546,1729545045797,-414.9392584,0.000166,2]
[340621547,1729545045806,-302.3308074,0.000166,2]
[340621548,1729545045815,-210.7185294,0.000166,2]
[340621549,1729545045824,-414.9392584,0.000166,2]
[340621550,1729545045833,-414.9392584,0.000166,2]
[340621551,1729545045842,-414.9392584,0.000166,2]
[340621552,1729545045851,-414.9392584,0.000166,2]
[340621553,1729545045859,-414.9392584,0.000166,2]
[340621554,1729545045869,-151.0,0.0001663,2]
[340621555,1729545045878,-593.862889,0.00016665,2]
[340621556,1729545045886,-454.509428,0.00016665,2]
[340621557,1729545045895,-594.536392,0.00016665,2]
[340621558,1729545045905,-150.112233,0.000167,2]
[340621559,1729545045914,-150.112234,0.000167,2]
[340621560,1729545045923,-151.437334,0.000167,2]
[340621561,1729545045933,-500.0,0.00016712,2]
[340621562,1729545045942,-500.0,0.00016712,2]
[340621563,1729545045951,-500.0,0.00016712,2]
[340621564,1729545045961,-500.0,0.00016712,2]
[340621565,1729545045970,-500.0,0.00016712,2]
[340621566,1729545045979,-500.0,0.00016712,2]
[340621567,1729545045989,-500.0,0.00016712,2]
[340621568,1729545045998,-500.0,0.00016712,2]
[340621569,1729545046007,-716.82,0.00016712,2]
[340621570,1729545046017,-500.0,0.00016712,2]
[340621571,1729545046027,-643.71,0.00016712,2]
[340621572,1729545046036,-822.18,0.00016712,2]
[340621573,1729545046045,-656.67,0.00016712,2]
[340621574,1729545046054,-500.0,0.00016712,2]
[340621575,1729545046063,-466.94703292,0.00016712,2]
[340621576,1729545046072,-500.0,0.00016712,2]
[340621577,1729545046081,-500.0,0.00016712,2]
[340621578,1729545046090,-500.0,0.00016712,2]
[340621579,1729545046099,-500.0,0.00016712,2]
[340621580,1729545046108,-756.95,0.00016712,2]
[340621581,1729545046118,-339.17099544,0.00016712,2]
[340621582,1729545046127,-500.0,0.00016712,2]
[340621583,1729545046136,-1232.5,0.00016712,2]
[340621584,1729545046145,-623.41,0.00016712,2]
[340621585,1729545046154,-532.2,0.00016712,2]
[340621586,1729545046163,-500.0,0.00016712,2]
[340621587,1729545046172,-621.53,0.00016712,2]
[340621588,1729545046181,-564.09,0.00016712,2]
[340621589,1729545046190,-762.22,0.00016712,2]
[340621590,1729545046198,-500.0,0.00016712,2]
[340621591,1729545046207,-500.0,0.00016712,2]
[340621592,1729545046216,-500.0,0.00016712,2]
[340621593,1729545046225,-1280.71,0.00016712,2]
[340621594,1729545046234,-500.0,0.00016712,2]
[340621595,1729545046245,-1264.88,0.00016712,2]
[340621596,1729545046254,-653.73,0.00016712,2]
[340621597,1729545046267,-984.69,0.00016712,2]
[340621598,1729545046276,-671.37,0.00016712,2]
[340621599,1729545046285,-719.83,0.00016712,2]
[340621600,1729545046294,-500.0,0.00016712,2]
[340621601,1729545046303,-706.95,0.00016712,2]
[340621602,1729545046312,-500.0,0.00016712,2]
[340621603,1729545046321,-500.0,0.00016712,2]
[340621604,1729545046332,-840.03,0.00016712,2]
[340621605,1729545046343,-500.0,0.00016712,2]
[340621606,1729545046352,-500.0,0.00016712,2]
[340621607,1729545046361,-1001.81,0.00016712,2]
[340621608,1729545046370,-646.73,0.00016712,2]
[340621609,1729545046380,-500.0,0.00016712,2]
[340621610,1729545046389,-846.7,0.00016712,2]
[340621611,1729545046398,-500.0,0.00016712,2]
[340621612,1729545046459,-1196.47,0.00016712,2]
[340621613,1729545046467,-500.0,0.00016712,2]
[340621614,1729545046476,-1774.01,0.00016712,2]
[340621615,1729545046485,-546.23,0.00016712,2]
[340621616,1729545046495,-500.0,0.00016712,2]
[340621617,1729545046504,-1453.33,0.00016712,2]
[340621618,1729545046513,-500.0,0.00016712,2]
[340621619,1729545046522,-1077.25,0.00016712,2]
[340621620,1729545046531,-500.0,0.00016712,2]
[340621621,1729545046540,-1405.43,0.00016712,2]
[340621622,1729545046549,-1135.64,0.00016712,2]
[340621623,1729545046558,-500.0,0.00016712,2]
[340621624,1729545046567,-547.38,0.00016712,2]
[340621625,1729545046575,-844.9,0.00016712,2]
[340621626,1729545046584,-1025.04,0.00016712,2]
[340621627,1729545046593,-500.0,0.00016712,2]
[340621628,1729545046602,-500.0,0.00016712,2]
[340621629,1729545046611,-500.0,0.00016712,2]
[340621630,1729545046620,-746.14,0.00016712,2]
[340621631,1729545046629,-585.91,0.00016712,2]
[340621632,1729545046638,-500.0,0.00016712,2]
[340621633,1729545046647,-1109.21,0.00016712,2]
[340621634,1729545046656,-601.57,0.00016712,2]
[340621635,1729545046665,-500.0,0.00016712,2]
[340621636,1729545046674,-500.0,0.00016712,2]
[340621637,1729545046683,-1400.08,0.00016712,2]
[340621638,1729545046692,-500.0,0.00016712,2]
[340621639,1729545046701,-911.99,0.00016712,2]
[340621640,1729545046711,-1139.38,0.00016712,2]
[340621641,1729545046719,-500.0,0.00016712,2]
[340621642,1729545046729,-500.0,0.00016712,2]
[340621643,1729545046738,-1268.23,0.00016712,2]
[340621644,1729545046747,-500.0,0.00016712,2]
[340621645,1729545046756,-861.92,0.00016712,2]
[340621646,1729545046765,-1094.6,0.00016712,2]
[340621647,1729545046774,-500.0,0.00016712,2]
[340621648,1729545046783,-200.0,0.00016712,2]
[340621649,1729545046792,-546.61,0.00016712,2]
[340621650,1729545046801,-654.49,0.00016712,2]
[340621651,1729545046810,-500.0,0.00016712,2]
[340621652,1729545046818,-1553.61,0.00016712,2]
[340621653,1729545046827,-731.6,0.00016712,2]
[340621654,1729545046836,-500.0,0.00016712,2]
[340621655,1729545046845,-1182.31,0.00016712,2]
[340621656,1729545046854,-582.64,0.00016712,2]
[340621657,1729545046863,-1196.56,0.00016712,2]
[340621658,1729545046871,-500.0,0.00016712,2]
[340621659,1729545046880,-535.21,0.00016712,2]
[340621660,1729545046889,-420.44654311,0.00016712,2]
[340621661,1729545046898,-500.0,0.00016712,2]
[340621662,1729545046907,-1233.12,0.00016712,2]
[340621663,1729545046916,-2327.53,0.00016712,2]
[340621664,1729545046925,-500.0,0.00016712,2]
[340621665,1729545046934,-1198.8,0.00016712,2]
[340621666,1729545046944,-826.99,0.00016712,2]
[340621667,1729545046953,-502.67,0.00016712,2]
[340621668,1729545046962,-640.72,0.00016712,2]
[340621669,1729545046971,-2082.4,0.00016712,2]
[340621670,1729545046980,-1290.76,0.00016712,2]
[340621671,1729545046989,-500.0,0.00016712,2]
[340621672,1729545046997,-508.6,0.00016712,2]
[340621673,1729545047006,-549.01,0.00016712,2]
[340621674,1729545047015,-856.99,0.00016712,2]
[340621675,1729545047023,-500.0,0.00016712,2]
[340621676,1729545047032,-980.45,0.00016712,2]
[340621677,1729545047041,-700.68,0.00016712,2]
[340621678,1729545047050,-504.44,0.00016712,2]
[340621679,1729545047058,-500.0,0.00016712,2]
[340621680,1729545047068,-678.43,0.00016712,2]
[340621681,1729545047077,-500.0,0.00016712,2]
[340621682,1729545047087,-1064.75,0.00016712,2]
[340621683,1729545047095,-1047.18,0.00016712,2]
[340621684,1729545047104,-986.67,0.00016712,2]
[340621685,1729545047113,-500.0,0.00016712,2]
[340621686,1729545047121,-497.60734273,0.00016712,2]
[340621687,1729545047130,-1775.0,0.00016712,2]
[340621688,1729545047138,-500.0,0.00016712,2]
[340621689,1729545047147,-649.73,0.00016712,2]
[340621690,1729545047156,-527.34,0.00016712,2]
[340621691,1729545047165,-640.6,0.00016712,2]
[340621692,1729545047173,-1244.86,0.00016712,2]
[340621693,1729545047182,-500.0,0.00016712,2]
[340621694,1729545047191,-930.93,0.00016712,2]
[340621695,1729545047199,-594.52,0.00016712,2]
[340621696,1729545047208,-734.44,0.00016712,2]
[340621697,1729545047218,-500.0,0.00016712,2]
[340621698,1729545047227,-1076.73,0.00016712,2]
[340621699,1729545047236,-500.0,0.00016712,2]
[340621700,1729545047246,-624.78,0.00016712,2]
[340621701,1729545047255,-717.87,0.00016712,2]
[340621702,1729545047267,-500.0,0.00016712,2]
[340621703,1729545047276,-1490.93,0.00016712,2]
[340621704,1729545047285,-500.0,0.00016712,2]
[340621705,1729545047294,-727.75,0.00016712,2]
[340621706,1729545047303,-500.0,0.00016712,2]
[340621707,1729545047312,-500.0,0.00016712,2]
[340621708,1729545047321,-500.0,0.00016712,2]
[340621709,1729545047330,-500.0,0.00016712,2]
[340621710,1729545047339,-500.0,0.00016712,2]
[340621711,1729545047348,-804.06,0.00016712,2]
[340621712,1729545047357,-837.88,0.00016712,2]
[340621713,1729545047366,-631.39,0.00016712,2]
[340621714,1729545047375,-536.0,0.00016712,2]
[340621715,1729545047385,-962.48,0.00016712,2]
[340621716,1729545047394,-511.51,0.00016712,2]
[340621717,1729545047403,-1045.52,0.00016712,2]
[340621718,1729545047411,-500.0,0.00016712,2]
[340621719,1729545047420,-865.03,0.00016712,2]
[340621720,1729545047429,-500.0,0.00016712,2]
[340621721,1729545047437,-552.68,0.00016712,2]
[340621722,1729545047447,-641.2,0.00016712,2]
[340621723,1729545047455,-937.68,0.00016712,2]
[340621724,1729545047464,-500.0,0.00016712,2]
[340621725,1729545047473,-1691.62,0.00016712,2]
[340621726,1729545047482,-732.8,0.00016712,2]
[340621727,1729545047492,-500.0,0.00016712,2]
[340621728,1729545047500,-422.21753975,0.00016712,2]
[340621729,1729545047509,-903.98,0.00016712,2]
[340621730,1729545047518,-538.75,0.00016712,2]
[340621731,1729545047527,-500.0,0.00016712,2]
[340621732,1729545047536,-784.23,0.00016712,2]
[340621733,1729545047545,-1498.89,0.00016712,2]
[340621734,1729545047553,-29185.18,0.00016712,2]
[340621735,1729545047562,-500.0,0.00016712,2]
[340621736,1729545047571,-622.0,0.00016712,2]
[340621737,1729545047580,-930.01,0.00016712,2]
[340621738,1729545047589,-500.0,0.00016712,2]
[340621739,1729545047598,-500.0,0.00016712,2]
[340621740,1729545047608,-500.0,0.00016712,2]
[340621741,1729545047619,-957.29,0.00016712,2]
[340621742,1729545047627,-5396.02,0.00016712,2]
[340621743,1729545047636,-893.55,0.00016712,2]
[340621744,1729545047645,-500.0,0.00016712,2]
[340621745,1729545047654,-936.56,0.00016712,2]
[340621746,1729545047663,-500.0,0.00016712,2]
[340621747,1729545047672,-629.49,0.00016712,2]
[340621748,1729545047681,-500.0,0.00016712,2]
[340621749,1729545047690,-500.0,0.00016712,2]
[340621750,1729545047699,-500.0,0.00016712,2]
[340621751,1729545047709,-500.0,0.00016712,2]
[340621752,1729545047718,-1715.21,0.00016712,2]
[340621753,1729545047727,-659.01,0.00016712,2]
[340621754,1729545047736,-1400.08,0.00016712,2]
[340621755,1729545047746,-500.0,0.00016712,2]
[340621756,1729545047755,-575.55,0.00016712,2]
[340621757,1729545047764,-577.19,0.00016712,2]
[340621758,1729545047773,-1012.69,0.00016712,2]
[340621759,1729545047782,-1968.89,0.00016712,2]
[340621760,1729545047793,-2487.72,0.00016712,2]
[340621761,1729545047802,-733.45,0.00016712,2]
[340621762,1729545047810,-1253.22,0.00016712,2]
[340621763,1729545047820,-524.68,0.00016712,2]
[340621764,1729545047829,-651.16,0.00016712,2]
[340621765,1729545047837,-634.45,0.00016712,2]
[340621766,1729545047846,-611.19,0.00016712,2]
[340621767,1729545047855,-909.9,0.00016712,2]
[340621768,1729545047863,-548.75,0.00016712,2]
[340621769,1729545047872,-500.0,0.00016712,2]
[340621770,1729545047881,-500.0,0.00016712,2]
[340621771,1729545047890,-906.83,0.00016712,2]
[340621772,1729545047899,-937.76,0.00016712,2]
[340621773,1729545047908,-1310.41,0.00016712,2]
[340621774,1729545047917,-500.0,0.00016712,2]
[340621775,1729545047926,-531.5,0.00016712,2]
[340621776,1729545047934,-1189.76,0.00016712,2]
[340621777,1729545047943,-639.01,0.00016712,2]
[340621778,1729545047953,-2011.75,0.00016712,2]
[340621779,1729545047962,-500.0,0.00016712,2]
[340621780,1729545047971,-500.0,0.00016712,2]
[340621781,1729545047980,-1340.15,0.00016712,2]
[340621782,1729545047989,-500.0,0.00016712,2]
[340621783,1729545047998,-1235.59,0.00016712,2]
[340621784,1729545048007,-500.0,0.00016712,2]
[340621785,1729545048016,-839.49,0.00016712,2]
[340621786,1729545048025,-500.0,0.00016712,2]
[340621787,1729545048034,-1271.38,0.00016712,2]
[340621788,1729545048043,-500.0,0.00016712,2]
[340621789,1729545048052,-500.0,0.00016712,2]
[340621790,1729545048061,-500.0,0.00016712,2]
[340621791,1729545048070,-1024.97,0.00016712,2]
[340621792,1729545048079,-901.94,0.00016712,2]
[340621793,1729545048088,-500.0,0.00016712,2]
[340621794,1729545048097,-1118.99,0.00016712,2]
[340621795,1729545048107,-500.0,0.00016712,2]
[340621796,1729545048116,-500.0,0.00016712,2]
[340621797,1729545048125,-899.82,0.00016712,2]
[340621798,1729545048134,-512.45,0.00016712,2]
[340621799,1729545048143,-936.25,0.00016712,2]
[340621800,1729545048153,-500.0,0.00016712,2]
[340621801,1729545048161,-2173.03,0.00016712,2]
[340621802,1729545048170,-894.41,0.00016712,2]
[340621803,1729545048179,-500.0,0.00016712,2]
[340621804,1729545048188,-500.0,0.00016712,2]
[340621805,1729545048197,-715.67,0.00016712,2]
[340621806,1729545048206,-2325.7,0.00016712,2]
[340621807,1729545048215,-513.6,0.00016712,2]
[340621808,1729545048224,-500.0,0.00016712,2]
[340621809,1729545048233,-1182.39,0.00016712,2]
[340621810,1729545048243,-500.0,0.00016712,2]
[340621811,1729545048252,-1172.58,0.00016712,2]
[340621812,1729545048264,-1323.26,0.00016712,2]
[340621813,1729545048272,-500.0,0.00016712,2]
[340621814,1729545048281,-533.03,0.00016712,2]
[340621815,1729545048290,-1306.87,0.00016712,2]
[340621816,1729545048299,-1051.76,0.00016712,2]
[340621817,1729545048310,-2948.56,0.00016712,2]
[340621818,1729545048319,-576.83,0.00016712,2]
[340621819,1729545048328,-500.0,0.00016712,2]
[340621820,1729545048338,-1427.46,0.00016712,2]
[340621821,1729545048347,-744.49,0.00016712,2]
[340621822,1729545048358,-807.28,0.00016712,2]
[340621823,1729545048367,-955.82,0.00016712,2]
[340621824,1729545048376,-1666.78,0.00016712,2]
[340621825,1729545048385,-1892.8,0.00016712,2]
[340621826,1729545048394,-767.24,0.00016712,2]
[340621827,1729545048403,-2175.05,0.00016712,2]
[340621828,1729545048412,-1583.14,0.00016712,2]
[340621829,1729545048421,-612.74,0.00016712,2]
[340621830,1729545048430,-1258.88,0.00016712,2]
[340621831,1729545048439,-516.65,0.00016712,2]
[340621832,1729545048448,-9734.74,0.00016712,2]
[340621833,1729545048457,-667.57,0.00016712,2]
[340621834,1729545048466,-500.0,0.00016712,2]
[340621835,1729545048475,-772.05,0.00016712,2]
[340621836,1729545048485,-910.36,0.00016712,2]
[340621837,1729545048494,-935.03,0.00016712,2]
[340621838,1729545048503,-1336.69,0.00016712,2]
[340621839,1729545048512,-1222.8,0.00016712,2]
[340621840,1729545048521,-1295.65,0.00016712,2]
[340621841,1729545048530,-500.0,0.00016712,2]
[340621842,1729545048539,-528.65,0.00016712,2]
[340621843,1729545048549,-500.0,0.00016712,2]
[340621844,1729545048558,-869.11,0.00016712,2]
[340621845,1729545048568,-1052.15,0.00016712,2]
[340621846,1729545048577,-500.0,0.00016712,2]
[340621847,1729545048586,-859.86,0.00016712,2]
[340621848,1729545048595,-825.86,0.00016712,2]
[340621849,1729545048604,-955.62,0.00016712,2]
[340621850,1729545048613,-3239.39,0.00016712,2]
[340621851,1729545048621,-1141.4,0.00016712,2]
[340621852,1729545048631,-5290.27,0.00016712,2]